[Event "Titled Tuesday Blitz October 11 Late 2022"]
[White "Krstic, Milos"]
[Black "Luxama, Jacques Muller"]
[WhiteFideId "954888"]
[BlackFideId "11900113"]
[WhiteElo "2194"]
[BlackElo "1931"]
[Result "1-0"]
[Round "03"]
[TimeControl "180+1"]
[Date "2022.10.12"]
[WhiteClock "0:00:10"]
[BlackClock "0:00:14"]

1. e4 {[%clk 0:03:00]}  c5 {[%clk 0:02:56]} 2. Nf3 {[%clk 0:03:00]}  d6 {[%clk 0:02:56]} 3. d4 {[%clk 0:03:01]}  cxd4 {[%clk 0:02:57]} 4. Nxd4 {[%clk 0:03:01]}  Nf6 {[%clk 0:02:58]} 5. Nc3 {[%clk 0:03:02]}  a6 {[%clk 0:02:58]} 6. h3 {[%clk 0:03:03]}  e5 {[%clk 0:02:57]} 7. Nde2 {[%clk 0:03:03]}  Be7 {[%clk 0:02:55]} 8. g4 {[%clk 0:03:03]}  h6 {[%clk 0:02:54]} 9. Bg2 {[%clk 0:03:03]}  Be6 {[%clk 0:02:52]} 10. Ng3 {[%clk 0:03:03]}  b5 {[%clk 0:02:48]} 11. O-O {[%clk 0:03:03]}  b4 {[%clk 0:02:47]} 12. Nd5 {[%clk 0:03:03]}  Bxd5 {[%clk 0:02:43]} 13. exd5 {[%clk 0:03:04]}  Nbd7 {[%clk 0:02:43]} 14. Nf5 {[%clk 0:02:52]}  Bf8 {[%clk 0:02:32]} 15. a3 {[%clk 0:02:50]}  g5 {[%clk 0:02:27]} 16. axb4 {[%clk 0:02:48]}  h5 {[%clk 0:02:13]} 17. Bxg5 {[%clk 0:02:44]}  hxg4 {[%clk 0:02:12]} 18. hxg4 {[%clk 0:02:44]}  Rg8 {[%clk 0:02:08]} 19. Bh4 {[%clk 0:02:34]}  Qb6 {[%clk 0:02:06]} 20. Ne3 {[%clk 0:02:27]}  Qxb4 {[%clk 0:01:56]} 21. f3 {[%clk 0:01:58]}  Qxb2 {[%clk 0:01:51]} 22. Nf5 {[%clk 0:01:52]}  a5 {[%clk 0:01:27]} 23. Rb1 {[%clk 0:01:49]}  Qc3 {[%clk 0:01:25]} 24. Rb3 {[%clk 0:01:30]}  Qc8 {[%clk 0:01:19]} 25. Qd2 {[%clk 0:01:11]}  a4 {[%clk 0:01:17]} 26. Ra3 {[%clk 0:01:11]}  Qc5+ {[%clk 0:01:15]} 27. Qe3 {[%clk 0:01:05]}  Qxe3+ {[%clk 0:01:13]} 28. Rxe3 {[%clk 0:01:06]}  Nxd5 {[%clk 0:01:12]} 29. Ra3 {[%clk 0:01:05]}  Nf4 {[%clk 0:01:07]} 30. Rfa1 {[%clk 0:01:03]}  Nc5 {[%clk 0:00:48]} 31. Bf2 {[%clk 0:01:02]}  d5 {[%clk 0:00:46]} 32. Bf1 {[%clk 0:00:55]}  Rb8 {[%clk 0:00:41]} 33. Re1 {[%clk 0:00:49]}  f6 {[%clk 0:00:38]} 34. Be3 {[%clk 0:00:44]}  Nfe6 {[%clk 0:00:33]} 35. Kg2 {[%clk 0:00:40]}  Kd7 {[%clk 0:00:31]} 36. Rd1 {[%clk 0:00:32]}  Kc6 {[%clk 0:00:29]} 37. Rda1 {[%clk 0:00:14]}  Rb2 {[%clk 0:00:26]} 38. R1a2 {[%clk 0:00:14]}  Rb4 {[%clk 0:00:20]} 39. Kf2 {[%clk 0:00:12]}  d4 {[%clk 0:00:19]} 40. Bd2 {[%clk 0:00:12]}  Rb1 {[%clk 0:00:18]} 41. Ng3 {[%clk 0:00:10]}  Nf4 {[%clk 0:00:16]} 42. Bxf4 {[%clk 0:00:10]}  exf4 {[%clk 0:00:15]} 43. Ne2 {[%clk 0:00:10]}  d3 {[%clk 0:00:14]} 44. cxd3 {[%clk 0:00:09]}  Rb3 {[%clk 0:00:15]} 45. Nd4+ {[%clk 0:00:08]}  Kd5 {[%clk 0:00:13]} 46. Nxb3 {[%clk 0:00:09]}  axb3 {[%clk 0:00:12]} 47. Rb2 {[%clk 0:00:07]}  Nxd3+ {[%clk 0:00:12]} 48. Bxd3 {[%clk 0:00:08]}  Bxa3 {[%clk 0:00:12]} 49. Rxb3 {[%clk 0:00:08]}  Bc5+ {[%clk 0:00:13]} 50. Ke2 {[%clk 0:00:08]}  Be3 {[%clk 0:00:13]} 51. Be4+ {[%clk 0:00:08]}  Kd4 {[%clk 0:00:13]} 52. Rd3+ {[%clk 0:00:07]}  Kc4 {[%clk 0:00:13]} 53. Bd5+ {[%clk 0:00:06]}  Kc5 {[%clk 0:00:13]} 54. Bxg8 {[%clk 0:00:07]}  f5 {[%clk 0:00:11]} 55. Rxe3 {[%clk 0:00:07]}  fxe3 {[%clk 0:00:11]} 56. Kxe3 {[%clk 0:00:07]}  fxg4 {[%clk 0:00:11]} 57. fxg4 {[%clk 0:00:08]}  Kd6 {[%clk 0:00:11]} 58. Kf4 {[%clk 0:00:09]}  Ke7 {[%clk 0:00:12]} 59. Kf5 {[%clk 0:00:09]}  Kf8 {[%clk 0:00:13]} 60. Bb3 {[%clk 0:00:09]}  Kg7 {[%clk 0:00:14]} 61. g5 {[%clk 0:00:10]} 1-0


[Site "https://www.chess.com"]

[Event "Titled Tuesday Blitz October 11 Late 2022"]
[White "Krzywda, Andrzej"]
[Black "Rose, Felix"]
[WhiteFideId "1114565"]
[BlackFideId "5105722"]
[WhiteElo "2149"]
[BlackElo "2039"]
[Result "1-0"]
[Round "03"]
[TimeControl "180+1"]
[Date "2022.10.12"]
[WhiteClock "0:00:04"]
[BlackClock "0:00:13"]

1. d4 {[%clk 0:02:59]}  d5 {[%clk 0:02:58]} 2. c4 {[%clk 0:02:59]}  e6 {[%clk 0:02:58]} 3. Nf3 {[%clk 0:02:58]}  Nf6 {[%clk 0:02:59]} 4. Nc3 {[%clk 0:02:58]}  Be7 {[%clk 0:02:59]} 5. Bf4 {[%clk 0:02:57]}  O-O {[%clk 0:02:59]} 6. e3 {[%clk 0:02:58]}  b6 {[%clk 0:02:59]} 7. Rc1 {[%clk 0:02:56]}  Bb7 {[%clk 0:02:53]} 8. cxd5 {[%clk 0:02:53]}  Nxd5 {[%clk 0:02:54]} 9. Nxd5 {[%clk 0:02:53]}  Qxd5 {[%clk 0:02:49]} 10. Qb3 {[%clk 0:02:36]}  Qxb3 {[%clk 0:02:43]} 11. axb3 {[%clk 0:02:37]}  Bb4+ {[%clk 0:02:44]} 12. Nd2 {[%clk 0:02:37]}  c5 {[%clk 0:02:40]} 13. dxc5 {[%clk 0:02:29]}  Bxc5 {[%clk 0:02:40]} 14. Be2 {[%clk 0:02:17]}  Nc6 {[%clk 0:02:07]} 15. O-O {[%clk 0:02:13]}  Rad8 {[%clk 0:02:02]} 16. Ne4 {[%clk 0:02:13]}  Be7 {[%clk 0:01:47]} 17. Bb5 {[%clk 0:02:08]}  Na5 {[%clk 0:01:41]} 18. Rc7 {[%clk 0:01:55]}  Bb4 {[%clk 0:00:55]} 19. Ng5 {[%clk 0:01:31]}  h6 {[%clk 0:00:46]} 20. Nf3 {[%clk 0:01:30]}  Bxf3 {[%clk 0:00:27]} 21. gxf3 {[%clk 0:01:31]}  Nxb3 {[%clk 0:00:27]} 22. Rxa7 {[%clk 0:01:27]}  Nd2 {[%clk 0:00:28]} 23. Rc1 {[%clk 0:01:19]}  e5 {[%clk 0:00:12]} 24. Bg3 {[%clk 0:01:11]}  Nxf3+ {[%clk 0:00:12]} 25. Kg2 {[%clk 0:01:12]}  Ne1+ {[%clk 0:00:12]} 26. Kf1 {[%clk 0:01:11]}  Nd3 {[%clk 0:00:08]} 27. Rcc7 {[%clk 0:01:03]}  Nxb2 {[%clk 0:00:06]} 28. Bxe5 {[%clk 0:01:02]}  Bd6 {[%clk 0:00:04]} 29. Bxd6 {[%clk 0:00:29]}  Rxd6 {[%clk 0:00:05]} 30. Ra2 {[%clk 0:00:30]}  Nd3 {[%clk 0:00:03]} 31. Rd2 {[%clk 0:00:24]}  Rfd8 {[%clk 0:00:03]} 32. Rc3 {[%clk 0:00:24]}  Nc5 {[%clk 0:00:03]} 33. Ra2 {[%clk 0:00:20]}  g6 {[%clk 0:00:03]} 34. Kg2 {[%clk 0:00:20]}  Kg7 {[%clk 0:00:04]} 35. Rca3 {[%clk 0:00:18]}  Rd2 {[%clk 0:00:04]} 36. Rxd2 {[%clk 0:00:17]}  Rxd2 {[%clk 0:00:04]} 37. Bc6 {[%clk 0:00:12]}  Ne6 {[%clk 0:00:02]} 38. Ra7 {[%clk 0:00:11]}  Rd6 {[%clk 0:00:03]} 39. Bb5 {[%clk 0:00:11]}  Nc5 {[%clk 0:00:03]} 40. Bc4 {[%clk 0:00:11]}  Rd7 {[%clk 0:00:03]} 41. Ra8 {[%clk 0:00:10]}  Ne6 {[%clk 0:00:02]} 42. h4 {[%clk 0:00:09]}  Rb7 {[%clk 0:00:02]} 43. Bd5 {[%clk 0:00:08]}  Rd7 {[%clk 0:00:03]} 44. Bb3 {[%clk 0:00:08]}  b5 {[%clk 0:00:03]} 45. Rb8 {[%clk 0:00:08]}  Nc7 {[%clk 0:00:02]} 46. Rb7 {[%clk 0:00:07]}  Re7 {[%clk 0:00:03]} 47. Kg3 {[%clk 0:00:06]}  h5 {[%clk 0:00:03]} 48. Kf3 {[%clk 0:00:06]}  Kf6 {[%clk 0:00:03]} 49. Ke2 {[%clk 0:00:06]}  Rd7 {[%clk 0:00:02]} 50. Rb6+ {[%clk 0:00:05]}  Ne6 {[%clk 0:00:02]} 51. Rxb5 {[%clk 0:00:04]}  Rc7 {[%clk 0:00:01]} 52. Rb6 {[%clk 0:00:05]}  Re7 {[%clk 0:00:02]} 53. Kf3 {[%clk 0:00:04]}  Kg7 {[%clk 0:00:01]} 54. Kg2 {[%clk 0:00:04]}  Kf6 {[%clk 0:00:02]} 55. Bxe6 {[%clk 0:00:04]}  Rxe6 {[%clk 0:00:02]} 56. Rb4 {[%clk 0:00:05]}  Re5 {[%clk 0:00:02]} 57. Rf4+ {[%clk 0:00:06]}  Rf5 {[%clk 0:00:03]} 58. Ra4 {[%clk 0:00:06]}  Re5 {[%clk 0:00:04]} 59. Ra6+ {[%clk 0:00:07]}  Re6 {[%clk 0:00:04]} 60. Ra8 {[%clk 0:00:08]}  Re7 {[%clk 0:00:05]} 61. Kg3 {[%clk 0:00:08]}  Re6 {[%clk 0:00:05]} 62. Kf4 {[%clk 0:00:08]}  Rb6 {[%clk 0:00:05]} 63. e4 {[%clk 0:00:09]}  Rb2 {[%clk 0:00:05]} 64. f3 {[%clk 0:00:09]}  Rb1 {[%clk 0:00:06]} 65. Ra6+ {[%clk 0:00:09]}  Kg7 {[%clk 0:00:07]} 66. Kg5 {[%clk 0:00:09]}  Rg1+ {[%clk 0:00:07]} 67. Kf4 {[%clk 0:00:10]}  Rh1 {[%clk 0:00:07]} 68. Kg3 {[%clk 0:00:10]}  Rg1+ {[%clk 0:00:08]} 69. Kh3 {[%clk 0:00:10]}  Rf1 {[%clk 0:00:08]} 70. Kg2 {[%clk 0:00:11]}  Rb1 {[%clk 0:00:08]} 71. Ra5 {[%clk 0:00:11]}  Rb6 {[%clk 0:00:09]} 72. Kg3 {[%clk 0:00:10]}  Rc6 {[%clk 0:00:09]} 73. e5 {[%clk 0:00:08]}  Rb6 {[%clk 0:00:08]} 74. Ra7 {[%clk 0:00:08]}  Re6 {[%clk 0:00:08]} 75. Kf4 {[%clk 0:00:07]}  Re8 {[%clk 0:00:08]} 76. Ke4 {[%clk 0:00:06]}  Re6 {[%clk 0:00:08]} 77. f4 {[%clk 0:00:07]}  Re8 {[%clk 0:00:08]} 78. f5 {[%clk 0:00:07]}  gxf5+ {[%clk 0:00:09]} 79. Kxf5 {[%clk 0:00:08]}  Re6 {[%clk 0:00:09]} 80. Ra5 {[%clk 0:00:08]}  Rg6 {[%clk 0:00:09]} 81. Ra7 {[%clk 0:00:07]}  Rg1 {[%clk 0:00:09]} 82. e6 {[%clk 0:00:06]}  Rf1+ {[%clk 0:00:09]} 83. Kg5 {[%clk 0:00:06]}  Kf8 {[%clk 0:00:09]} 84. exf7 {[%clk 0:00:03]}  Rxf7 {[%clk 0:00:09]} 85. Ra8+ {[%clk 0:00:04]}  Kg7 {[%clk 0:00:10]} 86. Kxh5 {[%clk 0:00:05]}  Rf5+ {[%clk 0:00:10]} 87. Kg4 {[%clk 0:00:05]}  Rf7 {[%clk 0:00:11]} 88. h5 {[%clk 0:00:05]}  Kh7 {[%clk 0:00:11]} 89. Kg5 {[%clk 0:00:06]}  Rc7 {[%clk 0:00:11]} 90. Ra5 {[%clk 0:00:05]}  Rd7 {[%clk 0:00:11]} 91. Rf5 {[%clk 0:00:06]}  Rc7 {[%clk 0:00:12]} 92. h6 {[%clk 0:00:06]}  Ra7 {[%clk 0:00:11]} 93. Rb5 {[%clk 0:00:07]}  Ra8 {[%clk 0:00:11]} 94. Rb7+ {[%clk 0:00:06]}  Kh8 {[%clk 0:00:12]} 95. Rb6 {[%clk 0:00:07]}  Rg8+ {[%clk 0:00:12]} 96. Kh5 {[%clk 0:00:07]}  Rf8 {[%clk 0:00:12]} 97. Rb7 {[%clk 0:00:06]}  Rg8 {[%clk 0:00:12]} 98. Ra7 {[%clk 0:00:04]}  Rf8 {[%clk 0:00:13]} 99. Kg6 {[%clk 0:00:05]}  Rg8+ {[%clk 0:00:13]} 100. Rg7 {[%clk 0:00:03]}  Rxg7+ {[%clk 0:00:13]} 101. hxg7+ {[%clk 0:00:03]}  Kg8 {[%clk 0:00:13]} 102. Kf6 {[%clk 0:00:03]}  Kh7 {[%clk 0:00:13]} 103. Kf7 {[%clk 0:00:04]}  Kh6 {[%clk 0:00:13]} 104. g8=Q {[%clk 0:00:04]} 1-0


[Site "https://www.chess.com"]

[Event "Titled Tuesday Blitz October 11 Late 2022"]
[White "Leiva, Gianmarco"]
[Black "Zochowski, Kacper"]
[WhiteFideId "3804399"]
[BlackFideId "1125494"]
[WhiteElo "2285"]
[BlackElo "2292"]
[Result "1-0"]
[Round "03"]
[TimeControl "180+1"]
[Date "2022.10.12"]
[WhiteClock "0:00:06"]
[BlackClock "0:00:06"]

1. e4 {[%clk 0:03:00]}  d6 {[%clk 0:02:57]} 2. d4 {[%clk 0:02:59]}  g6 {[%clk 0:02:57]} 3. Nf3 {[%clk 0:02:56]}  Bg7 {[%clk 0:02:57]} 4. Nc3 {[%clk 0:02:53]}  a6 {[%clk 0:02:55]} 5. a4 {[%clk 0:02:52]}  b6 {[%clk 0:02:54]} 6. Bd3 {[%clk 0:02:50]}  e6 {[%clk 0:02:54]} 7. h4 {[%clk 0:02:42]}  h6 {[%clk 0:02:54]} 8. Be3 {[%clk 0:02:41]}  Bb7 {[%clk 0:02:54]} 9. Qd2 {[%clk 0:02:39]}  Nd7 {[%clk 0:02:54]} 10. Ne2 {[%clk 0:02:31]}  Ne7 {[%clk 0:02:54]} 11. Ng3 {[%clk 0:02:31]}  Nf6 {[%clk 0:02:53]} 12. Qe2 {[%clk 0:02:21]}  c5 {[%clk 0:02:48]} 13. c3 {[%clk 0:02:20]}  O-O {[%clk 0:02:34]} 14. h5 {[%clk 0:01:42]}  g5 {[%clk 0:02:34]} 15. Bxg5 {[%clk 0:01:42]}  hxg5 {[%clk 0:02:34]} 16. h6 {[%clk 0:01:43]}  Bh8 {[%clk 0:02:30]} 17. h7+ {[%clk 0:01:36]}  Nxh7 {[%clk 0:02:30]} 18. Rxh7 {[%clk 0:01:35]}  Ng6 {[%clk 0:02:19]} 19. Rh2 {[%clk 0:01:15]}  cxd4 {[%clk 0:02:16]} 20. Nxd4 {[%clk 0:01:13]}  Bxd4 {[%clk 0:02:08]} 21. cxd4 {[%clk 0:01:13]}  Nf4 {[%clk 0:02:04]} 22. Qe3 {[%clk 0:00:53]}  Qf6 {[%clk 0:02:02]} 23. O-O-O {[%clk 0:00:51]}  Rfc8+ {[%clk 0:01:41]} 24. Kb1 {[%clk 0:00:51]}  Kf8 {[%clk 0:01:41]} 25. Nh5 {[%clk 0:00:45]}  Qh6 {[%clk 0:01:09]} 26. Rdh1 {[%clk 0:00:43]}  Nxd3 {[%clk 0:01:08]} 27. Qxd3 {[%clk 0:00:43]}  Qg6 {[%clk 0:01:06]} 28. Ng3 {[%clk 0:00:35]}  Ke7 {[%clk 0:01:04]} 29. Rh6 {[%clk 0:00:35]}  Qg7 {[%clk 0:01:00]} 30. Rh7 {[%clk 0:00:35]}  Qf6 {[%clk 0:00:59]} 31. d5 {[%clk 0:00:27]}  exd5 {[%clk 0:00:36]} 32. exd5 {[%clk 0:00:22]}  Kd7 {[%clk 0:00:34]} 33. Ne4 {[%clk 0:00:16]}  Qe7 {[%clk 0:00:30]} 34. R1h6 {[%clk 0:00:10]}  Kc7 {[%clk 0:00:15]} 35. Nxd6 {[%clk 0:00:06]}  Rf8 {[%clk 0:00:14]} 36. Qc3+ {[%clk 0:00:03]}  Kb8 {[%clk 0:00:13]} 37. Nxb7 {[%clk 0:00:03]}  Qe4+ {[%clk 0:00:13]} 38. Qc2 {[%clk 0:00:02]}  Qxc2+ {[%clk 0:00:10]} 39. Kxc2 {[%clk 0:00:03]}  Kxb7 {[%clk 0:00:11]} 40. Rf6 {[%clk 0:00:03]}  Rac8+ {[%clk 0:00:11]} 41. Kd3 {[%clk 0:00:04]}  Rc7 {[%clk 0:00:12]} 42. Rg7 {[%clk 0:00:04]}  Rd7 {[%clk 0:00:12]} 43. Rxg5 {[%clk 0:00:05]}  a5 {[%clk 0:00:12]} 44. Rgf5 {[%clk 0:00:05]}  Ka6 {[%clk 0:00:12]} 45. g4 {[%clk 0:00:05]}  Rc7 {[%clk 0:00:12]} 46. g5 {[%clk 0:00:05]}  Rc1 {[%clk 0:00:12]} 47. Rxf7 {[%clk 0:00:05]}  Rd8 {[%clk 0:00:12]} 48. g6 {[%clk 0:00:05]}  Rd1+ {[%clk 0:00:13]} 49. Ke2 {[%clk 0:00:05]}  Rb1 {[%clk 0:00:13]} 50. g7 {[%clk 0:00:05]}  Re8+ {[%clk 0:00:14]} 51. Kf3 {[%clk 0:00:05]}  Rg1 {[%clk 0:00:15]} 52. Kf4 {[%clk 0:00:05]}  Re2 {[%clk 0:00:14]} 53. f3 {[%clk 0:00:06]}  Reg2 {[%clk 0:00:11]} 54. d6 {[%clk 0:00:04]}  Rd2 {[%clk 0:00:11]} 55. d7 {[%clk 0:00:04]}  Rd3 {[%clk 0:00:12]} 56. Rg5 {[%clk 0:00:04]}  Rf1 {[%clk 0:00:12]} 57. Rg3 {[%clk 0:00:04]}  Rd4+ {[%clk 0:00:10]} 58. Ke3 {[%clk 0:00:05]}  Rfd1 {[%clk 0:00:09]} 59. Rg2 {[%clk 0:00:04]}  R1d3+ {[%clk 0:00:09]} 60. Kf2 {[%clk 0:00:05]}  Rd2+ {[%clk 0:00:07]} 61. Kg3 {[%clk 0:00:05]}  Rd6 {[%clk 0:00:05]} 62. g8=Q {[%clk 0:00:04]}  Rg6+ {[%clk 0:00:05]} 63. Qxg6 {[%clk 0:00:04]}  Rxg2+ {[%clk 0:00:05]} 64. Kxg2 {[%clk 0:00:05]}  Kb7 {[%clk 0:00:06]} 65. d8=Q+ {[%clk 0:00:05]}  Ka6 {[%clk 0:00:06]} 66. Qdxb6# {[%clk 0:00:06]} 1-0


[Site "https://www.chess.com"]

[Event "Titled Tuesday Blitz October 11 Late 2022"]
[White "Levitskiy, Andrey"]
[Black "Reprintsev, Alexander"]
[WhiteFideId "14132885"]
[BlackFideId "14100541"]
[WhiteElo "2318"]
[BlackElo "2230"]
[Result "1/2-1/2"]
[Round "03"]
[TimeControl "180+1"]
[Date "2022.10.12"]
[WhiteClock "0:00:04"]
[BlackClock "0:00:17"]

1. e4 {[%clk 0:03:00]}  d5 {[%clk 0:02:43]} 2. exd5 {[%clk 0:03:00]}  Qxd5 {[%clk 0:02:42]} 3. Nc3 {[%clk 0:03:01]}  Qa5 {[%clk 0:02:42]} 4. d4 {[%clk 0:03:02]}  Nf6 {[%clk 0:02:42]} 5. Nf3 {[%clk 0:03:00]}  Nc6 {[%clk 0:02:42]} 6. Bb5 {[%clk 0:02:58]}  Ne4 {[%clk 0:02:41]} 7. Bd2 {[%clk 0:02:45]}  Nxc3 {[%clk 0:02:40]} 8. Bxc6+ {[%clk 0:02:45]}  bxc6 {[%clk 0:02:40]} 9. Bxc3 {[%clk 0:02:46]}  Qd5 {[%clk 0:02:40]} 10. Qe2 {[%clk 0:02:20]}  Bg4 {[%clk 0:02:38]} 11. h3 {[%clk 0:02:13]}  Bxf3 {[%clk 0:02:38]} 12. gxf3 {[%clk 0:02:09]}  e6 {[%clk 0:02:33]} 13. Rg1 {[%clk 0:02:02]}  g6 {[%clk 0:02:12]} 14. Qe5 {[%clk 0:01:30]}  Qxe5+ {[%clk 0:02:10]} 15. dxe5 {[%clk 0:01:31]}  O-O-O {[%clk 0:02:05]} 16. Rg4 {[%clk 0:01:30]}  Bc5 {[%clk 0:01:53]} 17. Rc4 {[%clk 0:01:28]}  Rd5 {[%clk 0:01:52]} 18. b4 {[%clk 0:01:25]}  Bb6 {[%clk 0:01:48]} 19. Rxc6 {[%clk 0:01:19]}  Rhd8 {[%clk 0:01:46]} 20. a4 {[%clk 0:01:15]}  Bd4 {[%clk 0:01:45]} 21. Bxd4 {[%clk 0:01:06]}  Rxd4 {[%clk 0:01:45]} 22. c3 {[%clk 0:01:07]}  Rf4 {[%clk 0:01:27]} 23. Ke2 {[%clk 0:01:04]}  Rd5 {[%clk 0:01:21]} 24. Rc5 {[%clk 0:00:28]}  Rxc5 {[%clk 0:01:20]} 25. bxc5 {[%clk 0:00:29]}  Rf5 {[%clk 0:01:20]} 26. f4 {[%clk 0:00:21]}  Rxf4 {[%clk 0:01:20]} 27. Ke3 {[%clk 0:00:21]}  Rc4 {[%clk 0:01:19]} 28. Kd3 {[%clk 0:00:19]}  Rxc5 {[%clk 0:01:20]} 29. f4 {[%clk 0:00:20]}  Rd5+ {[%clk 0:01:10]} 30. Ke3 {[%clk 0:00:20]}  Ra5 {[%clk 0:01:10]} 31. Kd4 {[%clk 0:00:20]}  Kd7 {[%clk 0:01:03]} 32. c4 {[%clk 0:00:18]}  c5+ {[%clk 0:00:48]} 33. Kc3 {[%clk 0:00:17]}  Ra6 {[%clk 0:00:48]} 34. a5 {[%clk 0:00:09]}  Rc6 {[%clk 0:00:47]} 35. Rb1 {[%clk 0:00:08]}  Kc8 {[%clk 0:00:40]} 36. Kb3 {[%clk 0:00:03]}  Rc7 {[%clk 0:00:39]} 37. Ka4 {[%clk 0:00:02]}  f6 {[%clk 0:00:22]} 38. a6 {[%clk 0:00:01]}  fxe5 {[%clk 0:00:22]} 39. fxe5 {[%clk 0:00:02]}  Rf7 {[%clk 0:00:18]} 40. Kb5 {[%clk 0:00:02]}  Rf5 {[%clk 0:00:18]} 41. Kxc5 {[%clk 0:00:02]}  Rxe5+ {[%clk 0:00:18]} 42. Kc6 {[%clk 0:00:03]}  Ra5 {[%clk 0:00:17]} 43. c5 {[%clk 0:00:03]}  Rxa6+ {[%clk 0:00:17]} 44. Kb5 {[%clk 0:00:04]}  Ra2 {[%clk 0:00:17]} 45. Rf1 {[%clk 0:00:05]}  Kd8 {[%clk 0:00:15]} 46. Rd1+ {[%clk 0:00:04]}  Ke7 {[%clk 0:00:15]} 47. c6 {[%clk 0:00:04]}  Rc2 {[%clk 0:00:15]} 48. Ra1 {[%clk 0:00:03]}  Kf6 {[%clk 0:00:16]} 49. Rxa7 {[%clk 0:00:03]}  h5 {[%clk 0:00:16]} 50. c7 {[%clk 0:00:02]}  g5 {[%clk 0:00:17]} 51. Kb6 {[%clk 0:00:02]}  g4 {[%clk 0:00:17]} 52. hxg4 {[%clk 0:00:03]}  hxg4 {[%clk 0:00:17]} 53. Ra8 {[%clk 0:00:04]}  Kf5 {[%clk 0:00:17]} 54. Rf8+ {[%clk 0:00:05]}  Ke4 {[%clk 0:00:16]} 55. Re8 {[%clk 0:00:04]}  e5 {[%clk 0:00:16]} 56. c8=Q {[%clk 0:00:04]}  Rxc8 {[%clk 0:00:15]} 57. Rxc8 {[%clk 0:00:05]}  g3 {[%clk 0:00:16]} 58. Rg8 {[%clk 0:00:05]}  Kf3 {[%clk 0:00:16]} 59. Kc5 {[%clk 0:00:06]}  g2 {[%clk 0:00:16]} 60. Kd5 {[%clk 0:00:05]}  Kf2 {[%clk 0:00:17]} 61. Rf8+ {[%clk 0:00:05]}  Ke2 {[%clk 0:00:17]} 62. Rg8 {[%clk 0:00:05]}  Kf2 {[%clk 0:00:17]} 63. Kxe5 {[%clk 0:00:03]}  g1=Q {[%clk 0:00:17]} 64. Rxg1 {[%clk 0:00:04]}  Kxg1 {[%clk 0:00:17]} 1/2-1/2


[Site "https://www.chess.com"]

[Event "Titled Tuesday Blitz October 11 Late 2022"]
[White "Lopez Del Alamo, Antonio"]
[Black "Hemam, Moulaye Brahim"]
[WhiteFideId "2227339"]
[BlackFideId "19600054"]
[WhiteElo "2175"]
[BlackElo "2088"]
[Result "1/2-1/2"]
[Round "03"]
[TimeControl "180+1"]
[Date "2022.10.12"]
[WhiteClock "0:00:13"]
[BlackClock "0:00:14"]

1. e4 {[%clk 0:03:00]}  c5 {[%clk 0:02:17]} 2. Nf3 {[%clk 0:02:59]}  Nc6 {[%clk 0:02:17]} 3. Bb5 {[%clk 0:02:58]}  g6 {[%clk 0:02:15]} 4. Bxc6 {[%clk 0:02:57]}  bxc6 {[%clk 0:02:14]} 5. O-O {[%clk 0:02:56]}  Bg7 {[%clk 0:02:15]} 6. c3 {[%clk 0:02:55]}  d6 {[%clk 0:02:14]} 7. h3 {[%clk 0:02:53]}  Nf6 {[%clk 0:02:13]} 8. Re1 {[%clk 0:02:50]}  O-O {[%clk 0:02:12]} 9. d4 {[%clk 0:02:49]}  cxd4 {[%clk 0:02:12]} 10. cxd4 {[%clk 0:02:48]}  Nd7 {[%clk 0:02:01]} 11. Nc3 {[%clk 0:02:46]}  c5 {[%clk 0:02:00]} 12. Be3 {[%clk 0:02:43]}  cxd4 {[%clk 0:01:59]} 13. Bxd4 {[%clk 0:02:41]}  Nf6 {[%clk 0:01:58]} 14. Qd2 {[%clk 0:02:27]}  Bb7 {[%clk 0:01:57]} 15. Rad1 {[%clk 0:02:25]}  Qa5 {[%clk 0:01:51]} 16. Bxf6 {[%clk 0:02:02]}  Bxf6 {[%clk 0:01:49]} 17. Nd5 {[%clk 0:02:00]}  Qxa2 {[%clk 0:01:28]} 18. Nxf6+ {[%clk 0:01:55]}  exf6 {[%clk 0:01:29]} 19. Qxd6 {[%clk 0:01:54]}  Qe6 {[%clk 0:01:25]} 20. Qxe6 {[%clk 0:01:43]}  fxe6 {[%clk 0:01:26]} 21. Rd7 {[%clk 0:01:42]}  Rf7 {[%clk 0:01:24]} 22. Red1 {[%clk 0:01:42]}  Raf8 {[%clk 0:01:23]} 23. Rxf7 {[%clk 0:01:29]}  Rxf7 {[%clk 0:01:20]} 24. Rd8+ {[%clk 0:01:25]}  Kg7 {[%clk 0:01:19]} 25. Nd4 {[%clk 0:01:25]}  Re7 {[%clk 0:01:03]} 26. f3 {[%clk 0:01:23]}  e5 {[%clk 0:01:01]} 27. Nb5 {[%clk 0:01:19]}  Ba6 {[%clk 0:00:51]} 28. Nc3 {[%clk 0:01:11]}  Bc4 {[%clk 0:00:47]} 29. Rc8 {[%clk 0:00:30]}  Bf7 {[%clk 0:00:44]} 30. Rb8 {[%clk 0:00:19]}  Rd7 {[%clk 0:00:40]} 31. Nd5 {[%clk 0:00:15]}  Bxd5 {[%clk 0:00:40]} 32. exd5 {[%clk 0:00:16]}  Rxd5 {[%clk 0:00:38]} 33. Rb7+ {[%clk 0:00:16]}  Kh6 {[%clk 0:00:39]} 34. Rxa7 {[%clk 0:00:17]}  Rd1+ {[%clk 0:00:37]} 35. Kh2 {[%clk 0:00:17]}  Rd2 {[%clk 0:00:34]} 36. Rb7 {[%clk 0:00:17]}  f5 {[%clk 0:00:33]} 37. b4 {[%clk 0:00:17]}  Rb2 {[%clk 0:00:29]} 38. b5 {[%clk 0:00:16]}  e4 {[%clk 0:00:29]} 39. fxe4 {[%clk 0:00:16]}  fxe4 {[%clk 0:00:29]} 40. Kg3 {[%clk 0:00:15]}  Kg5 {[%clk 0:00:26]} 41. b6 {[%clk 0:00:14]}  Rb3+ {[%clk 0:00:26]} 42. Kf2 {[%clk 0:00:13]}  h5 {[%clk 0:00:26]} 43. Rb8 {[%clk 0:00:13]}  Kh6 {[%clk 0:00:17]} 44. b7 {[%clk 0:00:13]}  Kg7 {[%clk 0:00:17]} 45. h4 {[%clk 0:00:13]}  Kh7 {[%clk 0:00:15]} 46. Ke2 {[%clk 0:00:13]}  Kg7 {[%clk 0:00:15]} 47. Kd2 {[%clk 0:00:14]}  Kh7 {[%clk 0:00:15]} 48. Kc2 {[%clk 0:00:14]}  Rb6 {[%clk 0:00:15]} 49. Kc3 {[%clk 0:00:14]}  e3 {[%clk 0:00:14]} 50. Kd3 {[%clk 0:00:15]}  Rb3+ {[%clk 0:00:14]} 51. Ke2 {[%clk 0:00:15]}  Kg7 {[%clk 0:00:14]} 52. g3 {[%clk 0:00:15]}  Kh7 {[%clk 0:00:14]} 53. Kf3 {[%clk 0:00:13]}  Kg7 {[%clk 0:00:14]} 54. Ke2 {[%clk 0:00:13]}  Kh7 {[%clk 0:00:14]} 55. Kd1 {[%clk 0:00:13]}  Kg7 {[%clk 0:00:14]} 56. Ke2 {[%clk 0:00:13]} 1/2-1/2


[Site "https://www.chess.com"]